fUST/lending_fUST_20260124
["ID","MTS","AMOUNT","RATE_DAILY","PERIOD"]
[403205344,1769266297330,-570.08,0.00016986,2]
[403205345,1769266297339,-500.0,0.00016986,2]
[403205346,1769266297348,-313.09417245,0.00016986,2]
[403205347,1769266297358,-500.0,0.00016986,2]
[403205348,1769266297367,-500.0,0.00016986,2]
[403205349,1769266297375,-500.0,0.00016986,2]
[403205350,1769266297384,-220.87315645,0.00016986,2]
[403205351,1769266297393,-500.0,0.00016986,2]
[403205352,1769266297402,-500.0,0.00016986,2]
[403205353,1769266297412,-531.17,0.00016986,2]
[403205354,1769266297421,-500.0,0.00016986,2]
[403205355,1769266297432,-500.0,0.00016986,2]
[403205356,1769266297443,-500.0,0.00016986,2]
[403205357,1769266297452,-590.31,0.00016986,2]
[403205358,1769266297462,-1009.37,0.00016986,2]
[403205359,1769266297474,-500.0,0.00016986,2]
[403205360,1769266297483,-500.0,0.00016986,2]
[403205361,1769266297493,-567.52,0.00016986,2]
[403205362,1769266297502,-500.0,0.00016986,2]
[403205363,1769266297511,-500.0,0.00016986,2]
[403205364,1769266297520,-500.0,0.00016986,2]
[403205365,1769266297528,-500.0,0.00016986,2]
[403205366,1769266297537,-500.0,0.00016986,2]
[403205367,1769266297546,-500.0,0.00016986,2]
[403205368,1769266297554,-759.08,0.00016986,2]
[403205369,1769266297563,-500.0,0.00016986,2]
[403205370,1769266297572,-500.0,0.00016986,2]
[403205371,1769266297581,-455.93102769,0.00016986,2]
[403205372,1769266297591,-500.0,0.00016986,2]
[403205373,1769266297600,-500.0,0.00016986,2]
[403205374,1769266297608,-500.0,0.00016986,2]
[403205375,1769266297618,-500.0,0.00016986,2]
[403205376,1769266297626,-548.2,0.00016986,2]
[403205377,1769266297635,-500.0,0.00016986,2]
[403205378,1769266297644,-500.0,0.00016986,2]
[403205379,1769266297653,-612.4,0.00016986,2]
[403205380,1769266297663,-500.0,0.00016986,2]
[403205381,1769266297672,-500.0,0.00016986,2]
[403205382,1769266297681,-500.0,0.00016986,2]
[403205383,1769266297690,-500.0,0.00016986,2]
[403205384,1769266297698,-500.0,0.00016986,2]
[403205385,1769266297707,-500.0,0.00016986,2]
[403205386,1769266297717,-500.0,0.00016986,2]
[403205387,1769266297727,-500.0,0.00016986,2]
[403205388,1769266297736,-500.0,0.00016986,2]
[403205389,1769266297746,-536.24,0.00016986,2]
[403205390,1769266297755,-587.82,0.00016986,2]
[403205391,1769266297765,-500.0,0.00016986,2]
[403205392,1769266297774,-500.0,0.00016986,2]
[403205393,1769266297783,-500.0,0.00016986,2]
[403205394,1769266297792,-500.0,0.00016986,2]
[403205395,1769266297801,-500.0,0.00016986,2]
[403205396,1769266297811,-526.72,0.00016986,2]
[403205397,1769266297820,-500.0,0.00016986,2]
[403205398,1769266297829,-500.0,0.00016986,2]
[403205399,1769266297838,-500.0,0.00016986,2]
[403205400,1769266297847,-500.0,0.00016986,2]
[403205401,1769266297856,-587.69,0.00016986,2]
[403205402,1769266297866,-500.0,0.00016986,2]
[403205403,1769266297875,-500.0,0.00016986,2]
[403205404,1769266297884,-671.63,0.00016986,2]
[403205405,1769266297893,-500.0,0.00016986,2]
[403205406,1769266297902,-500.0,0.00016986,2]
[403205407,1769266297911,-500.0,0.00016986,2]
[403205408,1769266297921,-528.54,0.00016986,2]
[403205409,1769266297933,-500.0,0.00016986,2]
[403205410,1769266297952,-500.0,0.00016986,2]
[403205411,1769266297965,-508.24,0.00016986,2]
[403205412,1769266297976,-500.0,0.00016986,2]
[403205413,1769266297985,-500.0,0.00016986,2]
[403205414,1769266297996,-500.0,0.00016986,2]
[403205415,1769266298006,-556.52423018,0.00016986,2]
[403205416,1769266298016,-500.0,0.00016986,2]
[403205417,1769266298025,-500.0,0.00016986,2]
[403205418,1769266298039,-500.0,0.00016986,2]
[403205419,1769266298049,-1751.66,0.00016986,2]
[403205420,1769266298061,-391.88595798,0.00016986,2]
[403205421,1769266298071,-500.0,0.00016986,2]
[403205422,1769266298081,-500.0,0.00016986,2]
[403205423,1769266298090,-508.4,0.00016986,2]
[403205424,1769266298100,-500.0,0.00016986,2]
[403205425,1769266298111,-1013.44,0.00016986,2]
[403205426,1769266298121,-502.72,0.00016986,2]
[403205427,1769266298131,-532.35,0.00016986,2]
[403205428,1769266298141,-500.0,0.00016986,2]
[403205429,1769266298151,-500.0,0.00016986,2]
[403205430,1769266298163,-500.0,0.00016986,2]
[403205431,1769266298173,-500.0,0.00016986,2]
[403205432,1769266298184,-500.0,0.00016986,2]
[403205433,1769266298195,-500.0,0.00016986,2]
[403205434,1769266298206,-500.0,0.00016986,2]
[403205435,1769266298215,-500.0,0.00016986,2]
[403205436,1769266298226,-500.0,0.00016986,2]
[403205437,1769266298236,-500.0,0.00016986,2]
[403205438,1769266298246,-1060.87,0.00016986,2]
[403205439,1769266298256,-500.0,0.00016986,2]
[403205440,1769266298265,-500.0,0.00016986,2]
[403205441,1769266298275,-500.0,0.00016986,2]
[403205442,1769266298285,-500.0,0.00016986,2]
[403205443,1769266298294,-1200.0,0.00016986,2]
[403205444,1769266298303,-511.38249491,0.00016986,2]
[403205445,1769266298313,-500.0,0.00016986,2]
[403205446,1769266298323,-312.44461604,0.00016986,2]
[403205447,1769266298334,-500.0,0.00016986,2]
[403205448,1769266298343,-581.65876601,0.00016986,2]
[403205449,1769266298352,-500.0,0.00016986,2]
[403205450,1769266298361,-500.0,0.00016986,2]
[403205451,1769266298370,-500.0,0.00016986,2]
[403205452,1769266298380,-500.0,0.00016986,2]
[403205453,1769266298389,-500.0,0.00016986,2]
[403205454,1769266298398,-500.0,0.00016986,2]
[403205455,1769266298408,-531.37,0.00016986,2]
[403205456,1769266298417,-500.0,0.00016986,2]
[403205457,1769266298427,-500.0,0.00016986,2]
[403205458,1769266298436,-500.0,0.00016986,2]
[403205459,1769266298446,-500.0,0.00016986,2]
[403205460,1769266298455,-500.0,0.00016986,2]
[403205461,1769266298464,-500.0,0.00016986,2]
[403205462,1769266298474,-512.53,0.00016986,2]
[403205463,1769266298483,-500.0,0.00016986,2]
[403205464,1769266298491,-500.0,0.00016986,2]
[403205465,1769266298500,-2535.54,0.00016986,2]
[403205466,1769266298509,-500.0,0.00016986,2]
[403205467,1769266298518,-500.0,0.00016986,2]
[403205468,1769266298527,-500.0,0.00016986,2]
[403205469,1769266298536,-198.32715528,0.00016986,2]
[403205470,1769266298545,-504.4,0.00016986,2]
[403205471,1769266298555,-500.0,0.00016986,2]
[403205472,1769266298563,-500.0,0.00016986,2]
[403205473,1769266298572,-500.0,0.00016986,2]
[403205474,1769266298580,-508.39,0.00016986,2]
[403205475,1769266298589,-500.0,0.00016986,2]
[403205476,1769266298599,-500.0,0.00016986,2]
[403205477,1769266298608,-500.0,0.00016986,2]
[403205478,1769266298617,-500.0,0.00016986,2]
[403205479,1769266298626,-500.0,0.00016986,2]
[403205480,1769266298636,-242.08481598,0.00016986,2]
[403205481,1769266298645,-500.0,0.00016986,2]
[403205482,1769266298654,-512.31,0.00016986,2]
[403205483,1769266298663,-500.0,0.00016986,2]
[403205484,1769266298672,-500.0,0.00016986,2]
[403205485,1769266298680,-500.0,0.00016986,2]
[403205486,1769266298689,-500.0,0.00016986,2]
[403205487,1769266298698,-500.0,0.00016986,2]
[403205488,1769266298707,-510.8,0.00016986,2]
[403205489,1769266298716,-572.17665659,0.00016986,2]
[403205490,1769266298725,-500.0,0.00016986,2]
[403205491,1769266298735,-505.5,0.00016986,2]
[403205492,1769266298744,-163.90389554,0.00016986,2]
[403205493,1769266298753,-500.0,0.00016986,2]
[403205494,1769266298762,-518.63,0.00016986,2]
[403205495,1769266298772,-514.08802274,0.00016986,2]
[403205496,1769266298782,-500.0,0.00016986,2]
[403205497,1769266298791,-500.0,0.00016986,2]
[403205498,1769266298800,-500.0,0.00016986,2]
[403205499,1769266298808,-500.0,0.00016986,2]
[403205500,1769266298817,-374.42952039,0.00016986,2]
[403205501,1769266298826,-500.0,0.00016986,2]
[403205502,1769266298835,-500.0,0.00016986,2]
[403205503,1769266298845,-5223.42,0.00016986,2]
[403205504,1769266298854,-500.0,0.00016986,2]
[403205505,1769266298864,-500.0,0.00016986,2]
[403205506,1769266298873,-500.0,0.00016986,2]
[403205507,1769266298883,-500.0,0.00016986,2]
[403205508,1769266298892,-500.0,0.00016986,2]
[403205509,1769266298901,-500.0,0.00016986,2]
[403205510,1769266298911,-500.0,0.00016986,2]
[403205511,1769266298920,-500.0,0.00016986,2]
[403205512,1769266298930,-15042.8,0.00016986,2]
[403205513,1769266298938,-555.66,0.00016986,2]
[403205514,1769266298948,-383.76166276,0.00016986,2]
[403205515,1769266298957,-500.0,0.00017,2]
[403205516,1769266298967,-1000.0,0.00017,2]
[403205517,1769266298976,-200.0,0.00017,2]
[403205518,1769266298987,-200.0,0.00017,2]
[403205519,1769266298996,-200.0,0.00017,2]
[403205520,1769266299006,-200.0,0.00017,2]
[403205521,1769266299015,-200.0,0.00017,2]
[403205522,1769266299025,-200.0,0.00017,2]
[403205523,1769266299037,-200.0,0.00017,2]
[403205524,1769266299047,-200.0,0.00017,2]
[403205525,1769266299055,-200.0,0.00017,2]
[403205526,1769266299065,-200.0,0.00017,2]
[403205527,1769266299075,-211.31526946,0.00017,2]
[403205528,1769266299085,-1463.016239,0.00017113,7]
[403205529,1769266299094,-167.17583463,0.00017133,23]
[403205530,1769266299108,-163.67336226,0.00017248,2]
[403205531,1769266299117,-500.0,0.0001726,2]
[403205532,1769266299127,-500.0,0.0001726,2]
[403205533,1769266299136,-500.0,0.0001726,2]
[403205534,1769266299146,-500.0,0.0001726,2]
[403205535,1769266299328,-500.0,0.0001726,2]
[403205536,1769266299338,-500.0,0.0001726,2]
[403205537,1769266299347,-500.0,0.0001726,2]
[403205538,1769266299356,-511.13941147,0.0001726,2]
[403205539,1769266299366,-500.0,0.0001726,2]
[403205540,1769266299375,-500.0,0.0001726,2]
[403205541,1769266299384,-500.0,0.0001726,2]
[403205542,1769266299393,-500.0,0.0001726,2]
[403205543,1769266299402,-500.0,0.0001726,2]
[403205544,1769266299412,-484.0555215,0.0001726,2]
[403205545,1769266299422,-511.11388643,0.0001726,2]
[403205546,1769266299432,-264.81824378,0.0001726,2]
[403205547,1769266299441,-500.0,0.0001726,2]
[403205548,1769266299450,-500.0,0.0001726,2]
[403205549,1769266299460,-500.0,0.0001726,2]
[403205550,1769266299470,-500.0,0.0001726,2]
[403205551,1769266299480,-695.05,0.0001726,2]
[403205552,1769266299491,-500.0,0.0001726,2]
[403205553,1769266299500,-281.98118028,0.0001726,2]
[403205554,1769266299510,-500.0,0.0001726,2]
[403205555,1769266299521,-500.0,0.0001726,2]
[403205556,1769266299530,-299.63159105,0.0001726,2]
[403205557,1769266299539,-500.0,0.0001726,2]
[403205558,1769266299548,-500.0,0.0001726,2]
[403205559,1769266299557,-500.0,0.0001726,2]
[403205560,1769266299566,-500.0,0.0001726,2]
[403205561,1769266299575,-500.0,0.0001726,2]
[403205562,1769266299584,-500.0,0.0001726,2]
[403205563,1769266299594,-500.0,0.0001726,2]
[403205564,1769266299603,-500.0,0.0001726,2]
[403205565,1769266299612,-500.0,0.0001726,2]
[403205566,1769266299621,-500.0,0.0001726,2]
[403205567,1769266299630,-500.0,0.0001726,2]
[403205568,1769266299639,-500.0,0.0001726,2]
[403205569,1769266299648,-500.0,0.0001726,2]
[403205570,1769266299658,-500.0,0.0001726,2]
[403205571,1769266299667,-532.06,0.0001726,2]
[403205572,1769266299676,-500.0,0.0001726,2]
[403205573,1769266299687,-553.92,0.0001726,2]
[403205574,1769266299699,-500.0,0.0001726,2]
[403205575,1769266299708,-500.0,0.0001726,2]
[403205576,1769266299717,-570.08,0.0001726,2]
[403205577,1769266299729,-500.0,0.0001726,2]
[403205578,1769266299739,-500.0,0.0001726,2]
[403205579,1769266299748,-500.0,0.0001726,2]
[403205580,1769266299758,-500.0,0.0001726,2]
[403205581,1769266299767,-500.0,0.0001726,2]
[403205582,1769266299776,-500.0,0.0001726,2]
[403205583,1769266299787,-531.17,0.0001726,2]
[403205584,1769266299797,-500.0,0.0001726,2]
[403205585,1769266299806,-500.0,0.0001726,2]
[403205586,1769266299815,-500.0,0.0001726,2]
[403205587,1769266299824,-590.31,0.0001726,2]
[403205588,1769266299833,-1009.37,0.0001726,2]
[403205589,1769266299845,-500.0,0.0001726,2]
[403205590,1769266299855,-500.0,0.0001726,2]
[403205591,1769266299865,-567.52,0.0001726,2]
[403205592,1769266299874,-500.0,0.0001726,2]
[403205593,1769266299883,-310.41698044,0.0001726,2]
[403205594,1769266299892,-500.0,0.0001726,2]
[403205595,1769266299902,-364.6603084,0.0001726,2]
[403205596,1769266299911,-500.0,0.0001726,2]
[403205597,1769266299921,-500.0,0.0001726,2]
[403205598,1769266299930,-500.0,0.0001726,2]
[403205599,1769266299939,-759.08,0.0001726,2]
[403205600,1769266299948,-500.0,0.0001726,2]
[403205601,1769266299957,-500.0,0.0001726,2]
[403205602,1769266299967,-500.0,0.0001726,2]
[403205603,1769266299977,-500.0,0.0001726,2]
[403205604,1769266299986,-500.0,0.0001726,2]
[403205605,1769266299995,-500.0,0.0001726,2]
[403205606,1769266300004,-548.2,0.0001726,2]
[403205607,1769266300014,-500.0,0.0001726,2]
[403205608,1769266300024,-514.71181,0.0001726,2]
[403205609,1769266300033,-612.4,0.0001726,2]
[403205610,1769266300045,-500.0,0.0001726,2]
[403205611,1769266300054,-500.0,0.0001726,2]
[403205612,1769266300063,-500.0,0.0001726,2]
[403205613,1769266300072,-500.0,0.0001726,2]
[403205614,1769266300082,-500.0,0.0001726,2]
[403205615,1769266300091,-316.95672999,0.0001726,2]
[403205616,1769266300100,-500.0,0.0001726,2]
[403205617,1769266300110,-500.0,0.0001726,2]
[403205618,1769266300120,-500.0,0.0001726,2]
[403205619,1769266300130,-536.24,0.0001726,2]
[403205620,1769266300139,-587.82,0.0001726,2]
[403205621,1769266300149,-500.0,0.0001726,2]
[403205622,1769266300158,-500.0,0.0001726,2]
[403205623,1769266300167,-500.0,0.0001726,2]
[403205624,1769266300176,-500.0,0.0001726,2]
[403205625,1769266300186,-500.0,0.0001726,2]
[403205626,1769266300195,-526.72,0.0001726,2]
[403205627,1769266300203,-500.0,0.0001726,2]
[403205628,1769266300212,-500.0,0.0001726,2]
[403205629,1769266300223,-500.0,0.0001726,2]
[403205630,1769266300234,-500.0,0.0001726,2]
[403205631,1769266300244,-587.69,0.0001726,2]
[403205632,1769266300253,-500.0,0.0001726,2]
[403205633,1769266300262,-500.0,0.0001726,2]
[403205634,1769266300271,-671.63,0.0001726,2]
[403205635,1769266300280,-500.0,0.0001726,2]
[403205636,1769266300289,-500.0,0.0001726,2]
[403205637,1769266300298,-500.0,0.0001726,2]
[403205638,1769266300307,-528.54,0.0001726,2]
[403205639,1769266300316,-500.0,0.0001726,2]
[403205640,1769266300325,-500.0,0.0001726,2]
[403205641,1769266300334,-508.24,0.0001726,2]
[403205642,1769266300344,-500.0,0.0001726,2]
[403205643,1769266300354,-500.0,0.0001726,2]
[403205644,1769266300364,-500.0,0.0001726,2]
[403205645,1769266300374,-500.0,0.0001726,2]
[403205646,1769266300383,-500.0,0.0001726,2]
[403205647,1769266300392,-534.46451137,0.0001726,2]
[403205648,1769266300402,-1751.66,0.0001726,2]
[403205649,1769266300411,-500.0,0.0001726,2]
[403205650,1769266300421,-500.0,0.0001726,2]
[403205651,1769266300430,-508.4,0.0001726,2]
[403205652,1769266300439,-500.0,0.0001726,2]
[403205653,1769266300449,-1013.44,0.0001726,2]
[403205654,1769266300458,-502.72,0.0001726,2]
[403205655,1769266300467,-532.35,0.0001726,2]
[403205656,1769266300477,-500.0,0.0001726,2]
[403205657,1769266300486,-500.0,0.0001726,2]
[403205658,1769266300496,-500.0,0.0001726,2]
[403205659,1769266300504,-500.0,0.0001726,2]
[403205660,1769266300513,-500.0,0.0001726,2]
[403205661,1769266300522,-500.0,0.0001726,2]
[403205662,1769266300531,-500.0,0.0001726,2]
[403205663,1769266300540,-500.0,0.0001726,2]
[403205664,1769266300549,-500.0,0.0001726,2]
[403205665,1769266300558,-500.0,0.0001726,2]
[403205666,1769266300567,-1060.87,0.0001726,2]
[403205667,1769266300576,-500.0,0.0001726,2]
[403205668,1769266300585,-500.0,0.0001726,2]
[403205669,1769266300595,-500.0,0.0001726,2]
[403205670,1769266300603,-500.0,0.0001726,2]
[403205671,1769266300613,-1200.0,0.0001726,2]
[403205672,1769266300622,-500.0,0.0001726,2]
[403205673,1769266300632,-500.0,0.0001726,2]
[403205674,1769266300643,-340.71720017,0.0001726,2]
[403205675,1769266300652,-520.98591514,0.0001726,2]
[403205676,1769266300662,-500.0,0.0001726,2]
[403205677,1769266300671,-500.0,0.0001726,2]
[403205678,1769266300681,-500.0,0.0001726,2]
[403205679,1769266300690,-531.37,0.0001726,2]
[403205680,1769266300699,-500.0,0.0001726,2]
[403205681,1769266300708,-500.0,0.0001726,2]
[403205682,1769266300718,-500.0,0.0001726,2]
[403205683,1769266300728,-500.0,0.0001726,2]
[403205684,1769266300737,-500.0,0.0001726,2]
[403205685,1769266300746,-500.0,0.0001726,2]
[403205686,1769266300755,-500.0,0.0001726,2]
[403205687,1769266300764,-512.53,0.0001726,2]
[403205688,1769266300774,-578.05228369,0.0001726,2]
[403205689,1769266300783,-507.61579841,0.0001726,2]
[403205690,1769266300791,-2535.54,0.0001726,2]
[403205691,1769266300800,-500.0,0.0001726,2]
[403205692,1769266300809,-500.0,0.0001726,2]
[403205693,1769266300818,-500.0,0.0001726,2]
[403205694,1769266300827,-504.4,0.0001726,2]
[403205695,1769266300835,-500.0,0.0001726,2]
[403205696,1769266300844,-525.8547078,0.0001726,2]
[403205697,1769266300853,-500.0,0.0001726,2]
[403205698,1769266300862,-508.39,0.0001726,2]
[403205699,1769266300871,-500.0,0.0001726,2]
[403205700,1769266300881,-500.0,0.0001726,2]
[403205701,1769266300891,-500.0,0.0001726,2]
[403205702,1769266300900,-500.0,0.0001726,2]
[403205703,1769266300909,-535.4130123,0.0001726,2]
[403205704,1769266300919,-500.0,0.0001726,2]
[403205705,1769266300928,-512.31,0.0001726,2]
[403205706,1769266300937,-238.2352626,0.0001726,2]
[403205707,1769266300947,-500.0,0.0001726,2]
[403205708,1769266300956,-500.0,0.0001726,2]
[403205709,1769266300965,-500.0,0.0001726,2]
[403205710,1769266300974,-500.0,0.0001726,2]
[403205711,1769266300984,-510.8,0.0001726,2]
[403205712,1769266300993,-500.0,0.0001726,2]
[403205713,1769266301002,-505.5,0.0001726,2]
[403205714,1769266301012,-500.0,0.0001726,2]
[403205715,1769266301022,-518.63,0.0001726,2]
[403205716,1769266301031,-601.83477345,0.0001726,2]
[403205717,1769266301040,-500.0,0.0001726,2]
[403205718,1769266301052,-328.28825229,0.0001726,2]
[403205719,1769266301062,-500.0,0.0001726,2]
[403205720,1769266301072,-500.0,0.0001726,2]
[403205721,1769266301082,-512.40938208,0.0001726,2]
[403205722,1769266301091,-5223.42,0.0001726,2]
[403205723,1769266301100,-500.0,0.0001726,2]
[403205724,1769266301109,-265.83819688,0.0001726,2]
[403205725,1769266301118,-500.0,0.0001726,2]
[403205726,1769266301127,-500.0,0.0001726,2]
[403205727,1769266301136,-500.0,0.0001726,2]
[403205728,1769266301144,-500.0,0.0001726,2]
[403205729,1769266301153,-500.0,0.0001726,2]
[403205730,1769266301162,-500.0,0.0001726,2]
[403205731,1769266301171,-15042.8,0.0001726,2]
[403205732,1769266301179,-7713.125221,0.00017276,7]
[403205733,1769266301188,-240.97377757,0.00017332,10]
[403205734,1769266301197,-271.2,0.00017434,2]
[403205735,1769266301206,-1000.0,0.00017474,2]
[403205736,1769266301215,-492.0,0.00017474,2]
[403205737,1769266301224,-1041.66666667,0.00017533,2]
[403205738,1769266301233,-154.754427,0.00017534,2]
[403205739,1769266301242,-500.0,0.00017534,2]
[403205740,1769266301250,-500.0,0.00017534,2]
[403205741,1769266301259,-500.0,0.00017534,2]
[403205742,1769266301268,-500.0,0.00017534,2]
[403205743,1769266301276,-500.0,0.00017534,2]
[403205744,1769266301285,-500.0,0.00017534,2]
[403205745,1769266301294,-505.43364109,0.00017534,2]
[403205746,1769266301302,-500.0,0.00017534,2]
[403205747,1769266301311,-500.0,0.00017534,2]
[403205748,1769266301320,-249.50610871,0.00017534,2]
[403205749,1769266301329,-500.0,0.00017534,2]
[403205750,1769266301338,-500.0,0.00017534,2]
[403205751,1769266301346,-500.0,0.00017534,2]
[403205752,1769266301355,-500.0,0.00017534,2]
[403205753,1769266301364,-500.0,0.00017534,2]
[403205754,1769266301372,-500.0,0.00017534,2]
[403205755,1769266301381,-695.05,0.00017534,2]
[403205756,1769266301390,-500.0,0.00017534,2]
[403205757,1769266301399,-500.0,0.00017534,2]
[403205758,1769266301407,-500.0,0.00017534,2]
[403205759,1769266301416,-356.28607777,0.00017534,2]
[403205760,1769266301425,-500.0,0.00017534,2]
[403205761,1769266301435,-500.0,0.00017534,2]
[403205762,1769266301444,-500.0,0.00017534,2]
[403205763,1769266301453,-500.0,0.00017534,2]
[403205764,1769266301462,-500.0,0.00017534,2]
[403205765,1769266301471,-500.0,0.00017534,2]
[403205766,1769266301480,-279.84177288,0.00017534,2]
[403205767,1769266301489,-500.0,0.00017534,2]
[403205768,1769266301499,-500.0,0.00017534,2]
[403205769,1769266301508,-500.0,0.00017534,2]
[403205770,1769266301516,-500.0,0.00017534,2]
[403205771,1769266301526,-500.0,0.00017534,2]
[403205772,1769266301535,-500.0,0.00017534,2]
[403205773,1769266301544,-532.06,0.00017534,2]
[403205774,1769266301553,-500.0,0.00017534,2]
[403205775,1769266301563,-553.92,0.00017534,2]
[403205776,1769266301572,-500.0,0.00017534,2]
[403205777,1769266301581,-541.7976562,0.00017534,2]
[403205778,1769266301647,-570.08,0.00017534,2]
[403205779,1769266301656,-500.0,0.00017534,2]
[403205780,1769266301665,-581.36965329,0.00017534,2]
[403205781,1769266301674,-522.19826611,0.00017534,2]
[403205782,1769266301683,-500.0,0.00017534,2]
[403205783,1769266301692,-500.0,0.00017534,2]
[403205784,1769266301701,-500.0,0.00017534,2]
[403205785,1769266301710,-531.17,0.00017534,2]
[403205786,1769266301719,-500.0,0.00017534,2]
[403205787,1769266301729,-500.0,0.00017534,2]
[403205788,1769266301738,-500.0,0.00017534,2]
[403205789,1769266301747,-590.31,0.00017534,2]
[403205790,1769266301756,-1009.37,0.00017534,2]
[403205791,1769266301765,-500.0,0.00017534,2]
[403205792,1769266301774,-500.0,0.00017534,2]
[403205793,1769266301783,-567.52,0.00017534,2]
[403205794,1769266301792,-531.14034754,0.00017534,2]
[403205795,1769266301802,-500.0,0.00017534,2]
[403205796,1769266301811,-531.02511218,0.00017534,2]
[403205797,1769266301820,-500.0,0.00017534,2]
[403205798,1769266301829,-500.0,0.00017534,2]
[403205799,1769266301838,-759.08,0.00017534,2]
[403205800,1769266301847,-500.0,0.00017534,2]
[403205801,1769266301857,-500.0,0.00017534,2]
[403205802,1769266301866,-500.0,0.00017534,2]
[403205803,1769266301875,-500.0,0.00017534,2]
[403205804,1769266301884,-177.98166645,0.00017534,2]
[403205805,1769266301893,-500.0,0.00017534,2]
[403205806,1769266301903,-548.2,0.00017534,2]
[403205807,1769266301912,-500.0,0.00017534,2]
[403205808,1769266301921,-612.4,0.00017534,2]
[403205809,1769266301930,-500.0,0.00017534,2]
[403205810,1769266301939,-500.0,0.00017534,2]
[403205811,1769266301949,-500.0,0.00017534,2]
[403205812,1769266301958,-500.0,0.00017534,2]
[403205813,1769266301967,-500.0,0.00017534,2]
[403205814,1769266301976,-500.0,0.00017534,2]
[403205815,1769266301985,-500.0,0.00017534,2]
[403205816,1769266301994,-500.0,0.00017534,2]
[403205817,1769266302004,-536.24,0.00017534,2]
[403205818,1769266302013,-587.82,0.00017534,2]
[403205819,1769266302023,-500.0,0.00017534,2]
[403205820,1769266302033,-500.0,0.00017534,2]
[403205821,1769266302044,-500.0,0.00017534,2]
[403205822,1769266302054,-500.0,0.00017534,2]
[403205823,1769266302063,-500.0,0.00017534,2]
[403205824,1769266302073,-526.72,0.00017534,2]
[403205825,1769266302083,-500.0,0.00017534,2]
[403205826,1769266302093,-500.0,0.00017534,2]
[403205827,1769266302102,-505.64547493,0.00017534,2]
[403205828,1769266302112,-500.0,0.00017534,2]
[403205829,1769266302122,-587.69,0.00017534,2]
[403205830,1769266302132,-500.0,0.00017534,2]
[403205831,1769266302141,-500.0,0.00017534,2]
[403205832,1769266302150,-671.63,0.00017534,2]
[403205833,1769266302159,-500.0,0.00017534,2]
[403205834,1769266302169,-544.28311025,0.00017534,2]
[403205835,1769266302179,-500.0,0.00017534,2]
[403205836,1769266302189,-528.54,0.00017534,2]
[403205837,1769266302198,-500.0,0.00017534,2]
[403205838,1769266302207,-500.0,0.00017534,2]
[403205839,1769266302216,-508.24,0.00017534,2]
[403205840,1769266302226,-500.0,0.00017534,2]
[403205841,1769266302235,-500.0,0.00017534,2]
[403205842,1769266302245,-505.7682606,0.00017534,2]
[403205843,1769266302254,-500.0,0.00017534,2]